bitfinex/quotes_SOLUSD_20241121
["timestamp","ask_amount","ask_price","bid_price","bid_amount"]
[1732151756786,4.2162,237.18,237.09,16.0901]
[1732151756991,4.2162,237.18,237.1,20.0]
[1732151758066,16.99417356,237.19,237.1,20.0]
[1732151760879,12.77807356,237.18,237.1,20.0]
[1732151761492,23.31587356,237.24,237.1,20.0]
[1732151761493,12.77807356,237.19,237.1,20.0]
[1732151761968,16.99417356,237.19,237.1,20.0]
[1732151762476,23.776884,237.23,237.1,20.0]
[1732151762690,4.2149,237.25,237.12,20.0]
[1732151762864,4.2149,237.25,237.12,26.15802665]
[1732151763060,8.17612693,237.22,237.1,20.0]
[1732151763275,8.17612693,237.2,237.1,20.0]
[1732151764097,4.216,237.19,237.1,20.0]
[1732151764398,5.31299649,237.27,237.1,20.0]
[1732151764573,23.776884,237.24,237.1,26.15802665]
[1732151764782,8.17612693,237.25,237.1,26.15802665]
[1732151764783,12.7760522,237.25,237.1,26.15802665]
[1732151764995,23.776884,237.24,237.1,26.15802665]
[1732151765215,23.776884,237.24,237.12,20.0]
[1732151765370,36.5529362,237.25,237.12,20.0]
[1732151765566,10.5343,237.32,237.14,20.0]
[1732151765799,16.9905522,237.28,237.14,20.0]
[1732151766834,10.5343,237.32,237.14,20.0]
[1732151766835,12.7760522,237.26,237.14,20.0]
[1732151767516,23.776884,237.25,237.14,20.0]
[1732151768596,20.36398252,237.3,237.14,20.0]
[1732151768797,36.5529362,237.29,237.14,26.15802665]
[1732151769908,40.7671362,237.29,237.14,26.15802665]
[1732151770978,12.7760522,237.29,237.14,26.15802665]
[1732151771312,16.9903522,237.29,237.14,26.15802665]
[1732151773384,12.7760522,237.27,237.14,26.15802665]
[1732151773587,12.7760522,237.27,237.14,20.0]
[1732151774094,12.7760522,237.25,237.14,20.0]
[1732151774702,16.9910522,237.25,237.13,21.2112]
[1732151775496,12.7760522,237.23,237.13,21.2112]
[1732151776117,12.7760522,237.19,237.13,21.2112]
[1732151776615,12.7760522,237.23,237.13,21.2112]
[1732151776788,23.776884,237.28,237.13,21.2112]
[1732151776985,12.7760522,237.24,237.13,21.2112]
[1732151777182,23.776884,237.25,237.14,6.15802665]
[1732151777482,23.776884,237.25,237.15,20.0]
[1732151778405,27.991884,237.25,237.15,20.0]
[1732151778917,12.7760522,237.24,237.14,20.0]
[1732151779382,16.9911522,237.24,237.14,20.0]
[1732151779985,16.9909522,237.26,237.14,20.0]
[1732151783398,12.7760522,237.26,237.14,20.0]
[1732151783597,4.2145,237.28,237.14,26.15802665]
[1732151785015,4.2145,237.28,237.16,16.4714]
[1732151785219,4.2145,237.28,237.17,20.0]
[1732151785799,4.2145,237.28,237.19,20.0]
[1732151786595,8.17300906,237.31,237.19,20.0]
[1732151786915,8.17300906,237.33,237.19,26.15802665]
[1732151787129,8.17300906,237.33,237.21,20.0]
[1732151788005,4.2137,237.32,237.21,20.0]
[1732151789930,8.17300906,237.31,237.21,20.0]
[1732151790094,5.34899045,237.34,237.21,20.0]
[1732151790095,8.17300906,237.29,237.21,20.0]
[1732151790409,8.17300906,237.29,237.2,15.6905]
[1732151791425,8.17300906,237.24,237.2,15.6905]
[1732151792106,12.38780906,237.26,237.2,15.6905]
[1732151794224,23.776884,237.29,237.2,15.6905]
[1732151794225,23.776884,237.27,237.2,15.6905]
[1732151794437,12.38740906,237.28,237.2,15.6905]
[1732151794636,12.38740906,237.28,237.2,21.84852665]
[1732151795933,12.38740906,237.28,237.2,15.6905]
[1732151796725,15.0107,237.35,237.21,26.15802665]
[1732151797800,19.2239,237.35,237.21,26.15802665]
[1732151799132,15.0107,237.35,237.24,20.0]
[1732151799344,15.0107,237.35,237.27,59.093584]
[1732151799501,15.0107,237.35,237.28,6.15802665]
[1732151799747,4.2112,237.46,237.31,20.0]
[1732151799952,12.38420906,237.46,237.31,26.15802665]
[1732151800133,12.38420906,237.46,237.33,20.0]
[1732151800440,8.17300906,237.46,237.33,20.0]
[1732151800824,8.17300906,237.46,237.35,20.0]
[1732151801736,8.17300906,237.48,237.37,20.0]
[1732151802825,4.2107,237.49,237.37,20.0]
[1732151803124,8.17300906,237.47,237.37,20.0]
[1732151803516,8.17300906,237.49,237.37,20.0]
[1732151803832,12.38340906,237.51,237.4,20.0]
[1732151804006,8.17300906,237.51,237.4,20.0]
[1732151804409,43.21403624,237.6,237.42,20.0]
[1732151804628,8.17300906,237.54,237.42,20.0]
[1732151804853,8.17300906,237.54,237.43,16.6296]
[1732151805660,8.17300906,237.52,237.43,16.6296]
[1732151806045,8.17300906,237.5,237.43,16.6296]
[1732151806826,4.2103,237.52,237.43,16.6296]
[1732151807026,5.42230275,237.6,237.44,20.0]
[1732151807248,8.17300906,237.55,237.44,20.0]
[1732151807431,8.17300906,237.53,237.44,20.0]
[1732151807818,8.17300906,237.55,237.44,20.0]
[1732151808538,8.17300906,237.53,237.44,20.0]
[1732151808921,8.17300906,237.55,237.44,20.0]
[1732151809326,12.38210906,237.58,237.44,20.0]
[1732151809521,8.17300906,237.58,237.46,20.0]
[1732151809716,16.83158,237.59,237.47,22.2011]
[1732151810019,16.83158,237.59,237.5,20.0]
[1732151810221,8.17300906,237.61,237.5,20.0]
[1732151810632,17.41425839,237.62,237.5,20.0]
[1732151812117,0.4684832,237.62,237.51,6.3512]
[1732151812345,0.4684832,237.62,237.53,15.8499]
[1732151814322,12.73737519,237.61,237.53,15.8499]
[1732151814839,4.6768832,237.62,237.53,15.8499]
[1732151814840,12.73737519,237.55,237.53,15.8499]
[1732151815017,12.73737519,237.58,237.53,15.8499]
[1732151815214,12.73737519,237.6,237.53,15.8499]
[1732151815437,16.94627519,237.6,237.53,15.8499]
[1732151816520,16.94657519,237.58,237.53,15.8499]
[1732151816740,12.73737519,237.56,237.53,15.8499]
[1732151817715,12.73737519,237.56,237.4,0.5]
[1732151817716,12.73737519,237.54,237.48,15.152]
[1732151817961,12.73737519,237.6,237.48,15.152]
[1732151817962,12.73737519,237.5,237.48,15.152]
[1732151818539,4.2085,237.61,237.48,15.152]
[1732151818838,4.2085,237.61,237.49,6.15802665]
[1732151819347,12.73737519,237.6,237.5,20.0]
[1732151819718,16.94617519,237.6,237.5,20.0]
[1732151820241,4.2088,237.6,237.5,20.0]
[1732151820554,4.2088,237.6,237.49,20.0]
[1732151820931,17.41425839,237.62,237.49,20.0]
[1732151821244,0.4684832,237.62,237.53,43.776884]
[1732151821445,0.4684832,237.62,237.54,0.63116853]
[1732151823154,0.4684832,237.62,237.55,6.157]
[1732151823552,0.4684832,237.62,237.56,20.0]
[1732151824350,0.4684832,237.62,237.56,20.6311978]
[1732151824945,0.4684832,237.62,237.56,20.0]
[1732151825659,0.4684832,237.62,237.58,20.0]
[1732151828460,0.4684832,237.62,237.59,0.63112634]
[1732151831232,0.4684832,237.62,237.58,47.2]
[1732151832561,0.4684832,237.62,237.58,20.0]
[1732151833160,0.4684832,237.62,237.57,16.3708]
[1732151834949,4.6768832,237.62,237.57,16.3708]
[1732151836289,17.41425839,237.62,237.57,16.3708]
[1732151836474,4.6768832,237.62,237.57,16.3708]
[1732151836853,17.41425839,237.62,237.57,16.3708]
[1732151837053,4.6768832,237.62,237.57,16.3708]
[1732151838771,17.41425839,237.62,237.57,16.3708]
[1732151842866,4.6768832,237.62,237.57,16.3708]
[1732151843066,0.4684832,237.62,237.58,20.63127686]
[1732151843279,0.4684832,237.62,237.58,26.78930351]
[1732151844698,16.817746,237.74,237.6,0.5]
[1732151844894,8.14421745,237.73,237.62,20.0]
[1732151845494,8.14421745,237.73,237.62,20.63095686]
[1732151845791,4.2062,237.74,237.62,20.63095686]
[1732151846361,16.81638,237.78,237.61,20.0]
[1732151846362,8.14421745,237.71,237.61,20.0]
[1732151846586,8.14421745,237.71,237.6,20.0]
[1732151846787,12.72813292,237.71,237.6,20.0]
[1732151847289,23.776884,237.76,237.6,20.0]
[1732151847290,12.72813292,237.74,237.62,20.0]
[1732151847486,12.72813292,237.76,237.63,0.63091781]
[1732151848691,4.206,237.75,237.63,0.63091781]
[1732151848865,12.72813292,237.76,237.63,0.63091781]
[1732151849065,12.72813292,237.76,237.64,20.0]
[1732151849278,12.72813292,237.76,237.65,0.63088308]
[1732151849705,12.72813292,237.76,237.64,20.0]
[1732151849867,4.2055,237.79,237.67,23.776884]
[1732151850061,4.2055,237.79,237.68,20.0]
[1732151850288,12.72813292,237.78,237.68,20.0]
[1732151850696,12.72813292,237.78,237.66,27.2]
[1732151850697,12.72813292,237.78,237.67,20.0]
[1732151850871,16.93373292,237.78,237.67,20.0]
[1732151855604,6.26920096,237.86,237.67,23.776884]
[1732151855605,5.76920096,237.86,237.67,23.776884]
[1732151855779,0.4684832,237.86,237.72,20.5]
[1732151855980,0.4684832,237.86,237.74,20.0]
[1732151861605,13.19661612,237.86,237.74,20.0]
[1732151862005,0.4684832,237.86,237.76,44.276884]
[1732151862699,0.4684832,237.86,237.76,71.476884]
[1732151863217,0.4684832,237.86,237.77,15.9368]
[1732151867336,0.4684832,237.86,237.77,16.56734705]
[1732151868812,8.13377977,237.85,237.77,16.56734705]
[1732151869029,0.4684832,237.86,237.77,16.56734705]
[1732151869030,8.13377977,237.83,237.77,15.9368]
[1732151869219,8.13377977,237.81,237.77,15.9368]
[1732151870558,12.33867977,237.82,237.77,15.9368]
[1732151870716,12.71634454,237.81,237.77,15.9368]
[1732151871427,12.71634454,237.78,237.72,15.4343]
[1732151871720,12.71634454,237.77,237.72,15.4343]
[1732151874028,12.71634454,237.79,237.72,15.4343]
[1732151874246,12.71634454,237.81,237.73,6.15802665]
[1732151874446,12.71634454,237.82,237.73,6.15802665]
[1732151874641,12.71634454,237.81,237.73,6.15802665]
[1732151875705,12.71634454,237.81,237.72,15.4343]
[1732151876439,12.71634454,237.77,237.72,15.4343]
[1732151878617,16.92214454,237.77,237.72,15.4343]
[1732151879889,12.71634454,237.76,237.72,15.4343]
[1732151881023,12.71634454,237.75,237.72,15.4343]
[1732151881220,12.71634454,237.74,237.69,6.0118]
[1732151881632,12.71634454,237.74,237.66,16.333]
[1732151881815,12.71634454,237.72,237.66,16.333]
[1732151882824,16.92304454,237.72,237.66,16.333]
[1732151883007,12.71634454,237.72,237.66,16.333]
[1732151883606,16.92284454,237.73,237.66,16.333]
[1732151883920,4.2065,237.73,237.66,16.333]
[1732151884301,12.71634454,237.77,237.66,16.333]
[1732151884905,12.71634454,237.77,237.66,22.10680443]
[1732151885216,12.71634454,237.78,237.67,20.0]
[1732151885530,12.71634454,237.78,237.67,25.77380443]
[1732151886523,16.92204454,237.78,237.67,25.77380443]
[1732151887209,12.71634454,237.78,237.67,25.77380443]
[1732151887414,12.71634454,237.82,237.7,20.0]
[1732151887613,12.71634454,237.82,237.71,5.77380443]
[1732151888430,12.71634454,237.82,237.7,20.0]
[1732151888736,4.205,237.81,237.7,20.0]
[1732151889630,12.71634454,237.82,237.7,20.0]
[1732151889843,4.2048,237.83,237.72,15.6359]
[1732151890044,4.2043,237.85,237.73,0.63069996]
[1732151890352,0.4684832,237.86,237.73,20.63069996]
[1732151890641,0.4684832,237.86,237.75,20.0]
[1732151890934,0.4684832,237.86,237.77,6.105]
[1732151891825,4.6725832,237.86,237.77,6.105]
[1732151892243,4.6725832,237.86,237.78,20.0]
[1732151892747,0.4684832,237.86,237.78,20.0]
[1732151892916,0.4684832,237.86,237.79,15.6359]
[1732151894526,0.4684832,237.86,237.79,42.8359]
[1732151896059,17.38902774,237.86,237.79,42.8359]
[1732151896572,13.18482774,237.86,237.79,42.8359]
[1732151896956,17.38902774,237.86,237.79,43.6769]
[1732151897467,13.18482774,237.86,237.79,43.6769]
[1732151897671,0.4684832,237.86,237.79,16.4769]
[1732151899598,0.4684832,237.86,237.79,43.6769]
[1732151901581,0.4684832,237.86,237.79,16.4769]
[1732151902180,4.6725832,237.86,237.79,15.6359]
[1732151902378,4.6725832,237.86,237.72,27.83061678]
[1732151902379,12.71634454,237.85,237.72,27.2]
[1732151902552,12.71634454,237.85,237.73,10.6609132]
[1732151902981,12.71634454,237.85,237.72,27.2]
[1732151903587,16.92064454,237.85,237.73,0.8412]
[1732151904689,16.92064454,237.85,237.73,20.8412]
[1732151905055,12.71634454,237.85,237.73,26.61500443]
[1732151905284,12.71634454,237.85,237.74,5.77380443]
[1732151906490,0.4684832,237.86,237.76,22.5507]
[1732151906658,0.4684832,237.86,237.77,25.77380443]
[1732151907462,0.4684832,237.86,237.78,0.8411]
[1732151910858,8.13430892,237.85,237.78,0.8411]
[1732151911782,0.4684832,237.86,237.78,0.8411]
[1732151912695,8.13430892,237.85,237.78,0.8411]
[1732151912864,8.13430892,237.83,237.78,0.8411]
[1732151914686,0.4684832,237.86,237.76,22.5507]
[1732151914867,0.4684832,237.86,237.78,5.77380443]
[1732151916285,0.4684832,237.86,237.76,22.5507]
[1732151916483,0.4684832,237.86,237.76,28.32450443]
[1732151917163,0.4684832,237.86,237.76,22.5507]
[1732151918568,8.13430892,237.85,237.76,22.5507]
[1732151919284,8.60279212,237.86,237.76,22.5507]
[1732151919673,0.4684832,237.86,237.76,22.5507]
[1732151920876,0.4684832,237.86,237.76,55.52450443]
[1732151921076,0.4684832,237.86,237.77,5.77380443]
[1732151922403,8.13430892,237.85,237.76,49.7507]
[1732151922767,8.13430892,237.85,237.76,22.5507]
[1732151923991,8.60279212,237.86,237.76,22.5507]
[1732151929565,8.13430892,237.85,237.76,22.5507]
[1732151929773,8.13430892,237.83,237.76,22.5507]
[1732151930654,8.13430892,237.84,237.76,22.5507]
[1732151931181,8.13430892,237.85,237.76,22.5507]
[1732151932193,0.4684832,237.86,237.76,22.5507]
[1732151932475,8.13430892,237.85,237.76,22.5507]
[1732151937895,8.60279212,237.86,237.76,22.5507]
[1732151940010,8.13430892,237.84,237.76,22.5507]
[1732151946996,4.2043,237.85,237.76,22.5507]
[1732151946997,8.13430892,237.82,237.76,22.5507]
[1732151947179,8.13430892,237.78,237.68,15.7693]
[1732151947373,23.776884,237.82,237.68,15.7693]
[1732151947699,8.13430892,237.76,237.68,15.7693]
[1732151948445,23.776884,237.82,237.69,20.0]
[1732151948543,28.14877297,237.86,237.71,20.0]
[1732151948672,8.60279212,237.86,237.72,22.8069]
[1732151948979,0.4684832,237.86,237.73,20.0]
[1732151949181,8.13430892,237.84,237.73,20.0]
[1732151951171,8.60279212,237.86,237.73,20.0]
[1732151951707,8.13430892,237.84,237.73,20.0]
[1732151955279,8.13430892,237.82,237.73,20.0]
[1732151955684,8.13430892,237.8,237.73,20.0]
[1732151956713,4.2045,237.84,237.73,20.0]
[1732151956714,8.13430892,237.82,237.73,20.0]
[1732151959910,23.776884,237.84,237.73,20.0]
[1732151960109,8.13430892,237.83,237.73,20.0]
[1732151969418,8.13430892,237.85,237.73,20.0]
[1732151969903,8.13430892,237.83,237.73,20.0]
[1732151970402,0.4684832,237.86,237.73,20.0]
[1732151970601,8.13430892,237.83,237.73,20.0]
[1732151981329,8.13430892,237.81,237.73,20.0]
[1732151981537,8.13430892,237.79,237.73,20.0]
[1732151982538,8.13430892,237.8,237.73,20.0]
[1732151983521,8.13430892,237.81,237.73,20.0]
[1732151983739,8.13430892,237.82,237.73,20.0]
[1732151986747,8.13430892,237.8,237.73,20.0]
[1732151987114,4.6727832,237.86,237.73,20.0]
[1732151987318,8.13430892,237.81,237.73,20.0]
[1732151988424,8.13430892,237.81,237.72,22.8069]
[1732151988425,8.13430892,237.77,237.72,22.8069]
[1732151996855,24.94882592,237.77,237.72,22.8069]
[1732151997455,24.94882592,237.77,237.67,16.3936]
[1732151997456,8.13430892,237.73,237.67,16.3936]
[1732151997753,8.13430892,237.71,237.67,16.3936]
[1732151997970,8.13430892,237.7,237.58,24.2759]
[1732151998838,8.13430892,237.71,237.59,20.0]
[1732151999151,23.776884,237.76,237.6,10.18389653]
[1732151999453,21.020217,237.77,237.64,15.7874]
[1732151999454,16.814517,237.77,237.64,15.7874]
[1732151999656,16.814517,237.77,237.65,24.94221432]
[1732152000448,16.814517,237.77,237.66,1.2623]
[1732152000660,8.13430892,237.82,237.68,20.0]
[1732152000831,16.81332,237.8,237.68,20.0]
[1732152001670,16.81332,237.8,237.67,11.11291432]
[1732152001671,16.81332,237.8,237.7,20.0]
[1732152001854,8.13430892,237.85,237.7,20.0]
[1732152002039,8.13430892,237.83,237.7,20.0]
[1732152004238,4.2044,237.85,237.67,38.31291432]
[1732152004239,8.13430892,237.84,237.72,20.0]
[1732152005069,25.41379512,237.86,237.74,20.0]
[1732152007754,8.13430892,237.84,237.74,20.0]
[1732152008162,25.41379512,237.86,237.74,20.0]
[1732152008862,25.41379512,237.86,237.75,6.0384]
[1732152008863,17.2794862,237.86,237.75,6.0384]
[1732152009168,17.2794862,237.86,237.78,20.0]
[1732152009169,0.4684832,237.86,237.78,20.0]
[1732152012371,8.60279212,237.86,237.78,20.0]
[1732152013272,0.4684832,237.86,237.78,20.0]
[1732152015355,0.4684832,237.86,237.79,21.9802]
[1732152018578,10.97228792,238.0,237.82,21.2761]
[1732152018760,10.97228792,238.0,237.88,20.0]
[1732152019076,10.97228792,238.0,237.92,20.0]
[1732152019373,10.97228792,238.0,237.93,23.776884]
[1732152019555,10.97228792,238.0,237.94,20.0]
[1732152021360,19.10659684,238.0,237.92,27.2]
[1732152022055,10.97228792,238.0,237.93,20.0]
[1732152023552,10.97228792,238.0,237.95,20.0]
[1732152026660,10.97228792,238.0,237.97,20.0]
[1732152028237,10.97228792,238.0,237.98,6.3514]
[1732152028481,10.97228792,238.0,237.99,43.776884]
[1732152030077,0.4684832,238.1,238.03,23.776884]
[1732152030260,0.4684832,238.1,238.05,23.776884]
[1732152030592,0.4684832,238.1,238.06,20.0]
[1732152037485,0.4684832,238.1,238.08,20.0]
[1732152037992,0.4684832,238.1,238.09,15.0871]
[1732152038492,0.4684832,238.1,238.09,21.2749]
[1732152038976,0.4684832,238.1,238.09,45.051784]
[1732152041594,0.4684832,238.1,238.09,15.0871]
[1732152051807,0.4684832,238.1,238.09,38.863984]
[1732152052179,0.4684832,238.1,238.09,58.863984]
[1732152052379,59.73025879,238.14,238.1,43.776884]
[1732152052696,59.73025879,238.14,238.1,49.21454277]
[1732152053297,59.73025879,238.14,238.1,43.776884]
[1732152057098,59.73025879,238.14,238.1,70.976884]
[1732152060109,59.73025879,238.14,238.1,47.2]
[1732152060320,59.73025879,238.14,238.1,27.2]
[1732152062892,59.73025879,238.14,238.06,5.45692456]
[1732152063213,59.73025879,238.14,238.05,27.2]
[1732152063214,59.73025879,238.14,238.07,43.776884]
[1732152064806,58.73025879,238.14,238.07,43.776884]
[1732152065999,58.73025879,238.14,238.07,70.976884]
[1732152067615,58.73025879,238.14,238.09,43.776884]
[1732152067922,58.73025879,238.14,238.11,43.776884]
[1732152068090,58.73025879,238.14,238.12,5.43765877]
[1732152068292,58.73025879,238.14,238.13,43.776884]
[1732152068512,58.73025879,238.14,238.13,70.976884]
[1732152070324,58.73025879,238.14,238.13,47.2]
[1732152071991,58.73025879,238.14,238.08,20.0]
[1732152072288,58.73025879,238.14,238.08,47.2]
[1732152073796,58.73025879,238.14,238.1,20.0]
[1732152074117,52.26333903,238.14,238.13,43.776884]
[1732152074306,52.26333903,238.14,238.13,76.41454277]
[1732152075304,52.26333903,238.14,238.13,92.15954277]
[1732152075825,52.26333903,238.14,238.13,86.721884]
[1732152079603,52.26333903,238.14,238.13,92.16109897]
[1732152080005,52.26333903,238.14,238.13,97.59875774]
[1732152081198,45.8229,238.26,238.13,97.59875774]
[1732152081199,30.0,238.26,238.14,20.0]
[1732152081401,30.0,238.26,238.18,20.0]
[1732152081697,30.0,238.26,238.2,20.0]
[1732152082114,30.0,238.26,238.19,23.776884]
[1732152082323,30.0,238.26,238.2,20.0]
[1732152083033,30.0,238.26,238.18,20.0]
[1732152083407,30.0,238.26,238.2,20.0]
[1732152086221,30.0,238.26,238.18,20.0]
[1732152087216,30.0,238.26,238.2,20.0]
[1732152088622,30.0,238.26,238.22,20.0]
[1732152089216,30.0,238.26,238.11,5.12467036]
[1732152089217,0.5,238.16,237.95,27.2]
[1732152089414,0.5,238.21,237.97,0.5]
[1732152089626,8.13430892,238.19,237.99,0.5]
[1732152089826,13.9364,238.22,238.0,0.62993988]
[1732152090346,22.07070892,238.22,238.01,12.72015911]
[1732152090538,13.9364,238.22,238.02,0.62982825]
[1732152090831,22.07070892,238.22,238.04,23.776884]
[1732152091032,22.07070892,238.22,238.05,12.22015911]
[1732152091236,8.13430892,238.2,238.05,12.22015911]
[1732152091416,8.13430892,238.18,238.02,27.2]
[1732152093127,4.1982,238.2,238.03,56.30370977]
[1732152093334,8.13430892,238.19,238.03,56.30370977]
[1732152093713,8.13430892,238.17,238.03,56.30370977]
[1732152093922,8.13430892,238.17,238.03,83.50370977]
[1732152095016,8.13430892,238.19,238.03,83.50370977]
[1732152096539,8.13430892,238.18,238.03,83.50370977]
[1732152098810,4.1982,238.2,238.03,83.50370977]
[1732152099012,8.13430892,238.19,238.03,83.50370977]
[1732152099308,4.1982,238.2,238.03,83.50370977]
[1732152099309,8.13430892,238.18,238.03,83.50370977]
[1732152100639,8.13430892,238.19,238.03,83.50370977]
[1732152100846,30.722128,238.22,238.07,20.0]
[1732152100847,13.9364,238.22,238.07,20.0]
[1732152101015,7.6562,238.22,238.08,12.52682577]
[1732152101220,7.6562,238.22,238.09,43.776884]
[1732152101438,52.11284204,238.26,238.09,43.776884]
[1732152101636,8.13430892,238.24,238.12,23.776884]
[1732152102147,8.13430892,238.23,238.12,23.776884]
[1732152102533,8.13430892,238.21,238.12,20.0]
[1732152103126,8.13430892,238.21,238.1,43.776884]
[1732152103324,8.13430892,238.2,238.1,43.776884]
[1732152104945,4.1972,238.25,238.1,43.776884]
[1732152105251,8.13430892,238.21,238.1,43.776884]
[1732152106446,4.1973,238.25,238.1,43.776884]
[1732152106740,8.13430892,238.25,238.1,43.776884]
[1732152107110,30.0,238.26,238.1,43.776884]
[1732152107343,8.13430892,238.24,238.1,43.776884]
[1732152109030,8.13430892,238.22,238.1,43.776884]
[1732152109716,8.13430892,238.21,238.1,43.776884]
[1732152110649,8.13430892,238.22,238.1,43.776884]
[1732152113132,4.1972,238.25,238.1,43.776884]
[1732152113339,8.13430892,238.24,238.1,43.776884]
[1732152113950,4.1972,238.25,238.1,43.776884]
[1732152114147,38.13430892,238.26,238.12,20.0]
[1732152114326,42.33140892,238.26,238.12,43.776884]
[1732152116647,34.1971,238.26,238.12,43.776884]
[1732152116957,8.13430892,238.25,238.12,43.776884]
[1732152117132,30.0,238.26,238.12,43.776884]
[1732152117451,38.13430892,238.26,238.12,43.776884]
[1732152118936,8.13430892,238.24,238.12,43.776884]
[1732152119270,3.13430892,238.22,238.12,43.776884]
[1732152122172,8.13430892,238.2,238.12,43.776884]
[1732152123468,4.1972,238.25,238.12,43.776884]
[1732152123659,8.13430892,238.21,238.12,43.776884]
[1732152126368,8.13430892,238.21,238.12,23.776884]
[1732152126541,8.13430892,238.19,238.12,23.776884]
[1732152126740,8.13430892,238.21,238.12,23.776884]
[1732152127651,4.1976,238.23,238.12,23.776884]
[1732152127966,8.13430892,238.22,238.12,23.776884]
[1732152128134,8.13430892,238.24,238.14,23.776884]
[1732152128549,34.1971,238.26,238.14,23.776884]
[1732152128845,8.13430892,238.24,238.14,23.776884]
[1732152130960,4.1974,238.25,238.14,23.776884]
[1732152131237,8.13430892,238.23,238.14,23.776884]
[1732152132662,4.1974,238.25,238.14,23.776884]
[1732152132866,8.13430892,238.23,238.14,23.776884]
[1732152133970,8.13430892,238.21,238.14,23.776884]
[1732152134275,34.1971,238.26,238.14,23.776884]
[1732152134481,8.13430892,238.23,238.14,23.776884]
[1732152135058,8.13430892,238.23,238.12,23.776884]
[1732152135553,8.13430892,238.23,238.13,20.0]
[1732152135758,8.13430892,238.23,238.14,23.776884]
[1732152137955,8.13430892,238.21,238.14,23.776884]
[1732152138354,8.13430892,238.21,238.12,20.0]
[1732152138569,8.13430892,238.21,238.13,23.776884]
[1732152139256,8.13430892,238.21,238.12,20.0]
[1732152140580,30.0,238.26,238.12,20.0]
[1732152140778,4.1972,238.25,238.12,20.0]
[1732152140961,8.13430892,238.22,238.12,20.0]
[1732152141166,4.1972,238.25,238.13,23.776884]
[1732152141480,8.13430892,238.24,238.15,23.776884]
[1732152142393,30.0,238.26,238.17,23.776884]
[1732152142593,30.0,238.26,238.19,23.776884]
[1732152142969,30.0,238.26,238.2,15.996]
[1732152143581,30.0,238.26,238.21,43.776884]
[1732152146161,8.13430892,238.25,238.21,43.776884]
[1732152146581,38.13430892,238.26,238.21,43.776884]
[1732152148078,30.0,238.26,238.21,43.776884]
[1732152148384,38.13430892,238.26,238.21,43.776884]
[1732152151392,30.0,238.26,238.21,43.776884]
[1732152155597,30.0,238.26,238.21,23.776884]
[1732152155804,30.0,238.26,238.23,23.776884]
[1732152156684,29.0,238.26,238.23,23.776884]
[1732152157484,37.13430892,238.26,238.2,15.996]
[1732152157695,37.13430892,238.26,238.21,23.776884]
[1732152158503,29.0,238.26,238.21,23.776884]
[1732152162393,29.0,238.26,238.23,23.776884]
[1732152164870,29.0,238.26,238.24,20.0]
[1732152165119,29.0,238.26,238.25,23.776884]
[1732152169483,29.0,238.26,238.22,27.2]
[1732152170796,29.0,238.26,238.23,23.776884]
[1732152172996,29.0,238.26,238.21,23.776884]
[1732152174209,37.13430892,238.26,238.21,23.776884]
[1732152174428,29.0,238.26,238.21,23.776884]
[1732152179214,29.0,238.26,238.22,20.0]
[1732152179708,29.0,238.26,238.23,23.776884]
[1732152182492,29.0,238.26,238.23,50.976884]
[1732152186214,29.0,238.26,238.23,23.776884]
[1732152187910,29.0,238.26,238.25,43.776884]
[1732152188821,29.0,238.26,238.25,50.976884]
[1732152189030,29.0,238.26,238.25,43.776884]
[1732152192204,29.0,238.26,238.25,70.976884]
[1732152193521,33.60999229,238.27,238.26,20.0]
[1732152193737,31.93831679,238.27,238.26,49.93890227]
[1732152193920,31.93831679,238.27,238.26,43.776884]
[1732152195017,31.93831679,238.27,238.23,27.2]
[1732152196412,31.93831679,238.27,238.24,43.776884]
[1732152198305,31.93831679,238.27,238.24,70.976884]
[1732152204939,31.93831679,238.27,238.24,76.52510712]
[1732152206742,31.93831679,238.27,238.24,70.976884]